bitfinex-derivatives/quotes_ETHF0:USTF0_20240917
["timestamp","ask_amount","ask_price","bid_price","bid_amount"]
[1726570915372,0.43071,2321.7,2321.3,1.07692]
[1726570915767,0.43071,2321.7,2321.6,0.43071]
[1726570916069,1.66285496,2321.8,2321.7,0.43069]
[1726570916267,2.09353496,2321.8,2321.7,0.43069]
[1726570916464,0.43068,2321.8,2321.7,0.43069]
[1726570916658,1.07664,2322.0,2321.9,0.43066]
[1726570916659,1.66285496,2322.0,2321.9,0.43066]
[1726570916865,0.43061,2322.2,2322.0,0.43062]
[1726570917457,0.43067,2321.9,2321.5,1.07681]
[1726570917660,0.4236,2321.8,2321.4,0.4138]
[1726570917860,0.4236,2321.8,2321.6,0.4307]
[1726570918065,0.4236,2321.8,2321.4,3.1038]
[1726570918268,0.8271,2321.8,2321.4,2.69]
[1726570918473,0.8271,2321.8,2321.6,0.43071]
[1726570918474,0.4307,2321.7,2321.6,0.43071]
[1726570918661,0.43069,2321.7,2321.6,0.43071]
[1726570918866,0.43072,2321.6,2321.5,0.43072]
[1726570919180,0.4307,2321.7,2321.6,0.43071]
[1726570919368,1.9038,2321.8,2321.3,4.28471]
[1726570919569,0.43072,2321.6,2321.5,0.43071]
[1726570919868,0.43071,2321.7,2321.6,0.43071]
[1726570920372,4.73791,2321.7,2321.3,3.2078]
[1726570920572,1.9038,2321.8,2321.3,3.63854]
[1726570920573,0.43075,2321.4,2321.3,3.63854]
[1726570921473,0.43075,2321.4,2321.3,3.63857]
[1726570922570,0.84284,2321.5,2321.4,0.43075]
[1726570922974,1.25779,2321.8,2321.5,1.07683]
[1726570923274,4.58264,2322.0,2321.9,0.43066]
[1726570923573,0.43064,2322.0,2321.7,3.76674]
[1726570923776,0.43064,2322.0,2321.9,0.43066]
[1726570924173,0.81664,2322.1,2322.0,0.43064]
[1726570924490,4.3072,2322.0,2321.2,3.76697]
[1726570924782,4.3072,2322.0,2321.4,0.43074]
[1726570924783,0.43073,2321.6,2321.4,0.43074]
[1726570924967,0.4114,2321.5,2321.4,0.43074]
[1726570925163,0.4114,2321.5,2321.3,0.43077]
[1726570925376,1.0766,2322.0,2321.7,0.43068]
[1726570925580,1.07665,2321.9,2321.7,0.43069]
[1726570925874,0.43069,2321.8,2321.7,0.43069]
[1726570926074,3.63849,2321.8,2321.7,0.43069]
[1726570926572,0.43069,2321.8,2321.7,0.43069]
[1726570927276,0.43071,2321.7,2321.6,0.4307]
[1726570927470,0.43075,2321.5,2321.4,0.43074]
[1726570927669,0.43072,2321.6,2321.5,0.43071]
[1726570928379,0.43071,2321.7,2321.6,0.43069]
[1726570928770,4.73791,2321.7,2321.6,0.43069]
[1726570929283,0.43071,2321.7,2321.6,0.43069]
[1726570930478,2.48075027,2322.0,2321.6,6.9972]
[1726570930677,0.43066,2321.9,2321.8,0.43066]
[1726570930872,1.22665,2322.0,2321.9,0.43066]
[1726570931682,0.796,2322.0,2321.9,0.43066]
[1726570931872,1.22664,2322.0,2321.9,0.43066]
[1726570932378,0.796,2322.0,2321.9,0.43066]
[1726570933883,1.22664,2322.0,2321.9,0.43066]
[1726570934090,0.796,2322.0,2321.6,0.7914]
[1726570934273,0.43066,2321.9,2321.8,0.43066]
[1726570934579,0.4172,2321.9,2321.8,0.43066]
[1726570934772,0.84786,2321.9,2321.8,0.43066]
[1726570935080,0.4172,2321.9,2321.8,0.43066]
[1726570936581,1.22665,2322.0,2321.9,0.43066]
[1726570936983,1.22665,2322.0,2321.7,1.07674]
[1726570937281,1.22665,2322.0,2321.9,0.43066]
[1726570938674,1.22665,2322.0,2321.8,0.43066]
[1726570938675,0.43067,2321.9,2321.8,0.43066]
[1726570938878,1.22665,2322.0,2321.9,0.43066]
[1726570940975,1.22665,2322.0,2321.3,2.95947]
[1726570940976,14.86902,2322.0,2321.3,2.57407]
[1726570941181,0.43069,2321.8,2321.7,0.43068]
[1726570941385,3.63849,2321.8,2321.7,0.43068]
[1726570941583,0.43069,2321.8,2321.7,0.43068]
[1726570941778,3.63849,2321.8,2321.7,0.43068]
[1726570941979,0.43069,2321.8,2321.7,0.43068]
[1726570942475,1.07665,2321.9,2321.4,1.07688]
[1726570942779,0.43073,2321.6,2321.5,0.43072]
[1726570943084,0.43074,2321.5,2321.4,0.43073]
[1726570943286,1.67344,2321.5,2321.4,0.43073]
[1726570945674,5.5507,2321.5,2321.2,3.2078]
[1726570945875,0.4308,2321.1,2321.0,0.4308]
[1726570946077,1.68475027,2321.4,2320.9,1.11610491]
[1726570946277,0.43077,2321.3,2321.2,0.43077]
[1726570946478,2.31954,2321.5,2321.4,0.43075]
[1726570946479,1.67345,2321.5,2321.4,0.43075]
[1726570946686,3.36539436,2321.5,2321.4,0.43075]
[1726570946988,2.93464436,2321.5,2321.2,1.07696]
[1726570947171,0.43075,2321.4,2321.3,0.43075]
[1726570947372,2.24678072,2321.9,2321.6,1.07678]
[1726570947573,6.39878072,2322.1,2321.8,2.69]
[1726570947777,3.32334072,2322.1,2321.6,5.8978]
[1726570947978,3.63844,2322.0,2321.8,0.43067]
[1726570948178,3.32334072,2322.1,2321.8,0.43067]
[1726570948380,0.43065,2322.0,2321.6,6.97458]
[1726570948588,0.43065,2322.0,2321.9,0.43066]
[1726570949672,2.24678072,2322.1,2321.9,0.43066]
[1726570949673,2.24678072,2322.1,2321.9,6.9964]
[1726570949876,8.4837245,2328.1,2322.1,1.07655]
[1726570949877,1.68078073,2322.4,2322.1,1.07655]
[1726570950083,4.5661,2322.6,2322.3,3.2078]
[1726570950283,0.4141,2322.6,2322.1,2.69]
[1726570950481,0.43056,2322.5,2322.2,0.43058]
[1726570950679,3.66130268,2322.6,2322.3,0.43057]
[1726570951082,3.66130268,2322.6,2322.4,0.43056]
[1726570951274,3.23076268,2322.6,2322.2,2.69]
[1726570951480,3.23076268,2322.6,2322.5,0.43054]
[1726570951782,0.4141,2322.6,2322.5,0.43054]
[1726570952182,0.8246,2322.8,2322.7,0.43051]
[1726570952578,0.8246,2322.8,2322.6,0.43052]
[1726570953992,0.8246,2322.8,2322.5,0.43053]
[1726570954279,0.8246,2322.8,2322.6,0.43052]
[1726570954986,1.25509,2322.8,2322.4,3.12055]
[1726570955283,1.25509,2322.8,2322.5,0.43054]
[1726570955483,0.8246,2322.8,2322.6,0.43052]
[1726570956280,0.43051,2322.7,2322.5,0.43053]
[1726570956486,1.25509,2322.8,2322.6,0.43052]
[1726570956687,0.43051,2322.7,2322.5,0.43054]
[1726570956884,1.2551,2322.8,2322.6,0.43052]
[1726570957084,1.2551,2322.8,2322.7,0.43051]
[1726570957085,0.8246,2322.8,2322.7,0.43051]
[1726570957292,0.4144,2322.8,2322.7,0.43051]
[1726570957591,0.81616,2323.0,2322.8,0.43049]
[1726570957781,0.43047,2322.9,2322.8,0.43049]
[1726570958286,0.43047,2322.9,2322.7,0.43049]
[1726570958885,0.43047,2322.9,2322.8,0.43049]
[1726570959086,0.43047,2322.9,2322.5,5.8978]
[1726570959281,0.7853,2323.0,2322.5,5.8978]
[1726570959586,1.21575,2323.0,2322.8,0.43048]
[1726570959789,0.7853,2323.0,2322.9,0.43047]
[1726570959979,1.21575,2323.0,2322.9,0.43047]
[1726570960180,0.7853,2323.0,2322.5,6.97415]
[1726570960485,0.43048,2322.9,2322.8,0.43049]
[1726570960989,0.3857,2323.0,2322.9,0.43047]
[1726570961385,0.3857,2323.0,2322.9,7.42527]
[1726570961885,0.4132,2323.4,2323.1,0.43043]
[1726570962080,0.43041,2323.2,2323.1,0.43043]
[1726570962280,0.84531,2323.3,2323.1,0.43043]
[1726570962583,0.4149,2323.3,2323.2,0.43041]
[1726570963086,0.8453,2323.3,2323.2,0.43041]
[1726570963388,0.4149,2323.3,2323.2,0.43041]
[1726570963787,0.4149,2323.3,2323.1,3.12042]
[1726570964092,0.4149,2323.3,2323.1,2.69]
[1726570964287,0.4149,2323.3,2323.1,6.32823]
[1726570964482,0.4149,2323.3,2322.9,2.69]
[1726570964689,0.4149,2323.3,2322.7,3.2078]
[1726570964690,1.4909,2323.3,2322.7,5.8978]
[1726570964994,0.43045,2323.1,2323.0,0.43045]
[1726570965186,0.43043,2323.2,2323.1,0.43043]
[1726570965491,0.43045,2323.0,2322.9,3.12046]
[1726570965687,0.43045,2323.1,2323.0,0.43045]
[1726570965885,1.07605,2323.2,2322.9,2.69]
[1726570965886,0.43045,2323.0,2322.9,3.12046]
[1726570966191,0.4145,2323.0,2322.7,5.8978]
[1726570966385,0.84497,2323.0,2322.9,0.43047]
[1726570969092,0.43047,2323.0,2322.9,0.43046]
[1726570969680,0.43044,2323.1,2323.0,0.43043]
[1726570969886,0.43044,2323.1,2323.0,0.43045]
[1726570970087,4.70868268,2323.3,2323.1,0.43042]
[1726570970088,0.43043,2323.2,2323.1,0.43042]
[1726570970290,0.43045,2323.1,2323.0,0.43043]
[1726570973288,1.24642,2323.3,2323.2,0.43041]
[1726570973691,1.24642,2323.3,2323.0,2.69]
[1726570973991,0.43043,2323.2,2323.1,0.43042]
[1726570974889,0.43047,2323.0,2322.9,0.43045]
[1726570975087,0.43045,2323.1,2323.0,0.43043]
[1726570977985,0.43045,2323.1,2323.0,0.43045]
[1726570978698,0.43043,2323.2,2323.1,0.43042]
[1726570978990,0.816,2323.3,2323.2,0.43041]
[1726570979594,0.8453,2323.3,2323.2,0.43041]
[1726570979789,1.2385,2323.3,2323.2,0.43041]
[1726570979990,0.4149,2323.3,2323.2,0.43041]
[1726570981897,0.8453,2323.3,2323.2,0.43041]
[1726570982489,0.4149,2323.3,2323.2,0.43041]
[1726570982690,0.43042,2323.2,2323.1,0.43042]
[1726570983093,1.07606,2323.2,2322.9,0.43046]
[1726570983290,1.07609,2323.2,2322.7,4.28407]
[1726570983496,0.43047,2322.9,2322.6,4.16422]
[1726570983694,0.43047,2322.9,2322.8,0.43048]
[1726570984595,0.83047,2322.9,2322.8,0.43048]
[1726570984792,0.4,2322.9,2322.8,0.43048]
[1726570985502,0.83047,2322.9,2322.8,0.43048]
[1726570985703,0.83047,2322.9,2322.6,3.76631]
[1726570985704,0.4305,2322.8,2322.6,2.69]
[1726570985894,0.4305,2322.8,2322.7,0.43051]
[1726570986094,0.4305,2322.8,2322.7,0.43049]
[1726570986298,0.4,2322.9,2322.5,1.07637]
[1726570986299,0.83048,2322.9,2322.8,0.43049]
[1726570986501,0.4,2322.9,2322.4,6.97421]
[1726570986805,0.4,2322.9,2322.3,0.43056]
[1726570986806,0.43057,2322.4,2322.3,0.43056]
[1726570986999,6.97408,2322.7,2322.0,3.7666]
[1726570987000,0.4306,2322.3,2322.2,0.43058]
[1726570987200,0.43061,2322.2,2322.1,0.4306]
[1726570987395,1.07647,2322.3,2321.9,1.07664]
[1726570987396,0.4306,2322.3,2322.2,0.43059]
[1726570988709,0.43057,2322.4,2322.3,0.43056]
[1726570989609,0.43059,2322.3,2322.2,0.43059]
[1726570989802,0.43059,2322.3,2321.8,6.97449]
[1726570990009,0.43063,2322.1,2322.0,0.43063]
[1726570990211,1.0766,2322.0,2321.4,6.5057]
[1726570990396,5.8978,2322.1,2321.8,0.43066]
[1726570990397,2.24365206,2322.1,2321.8,0.43066]
[1726570990601,2.67428206,2322.1,2322.0,0.43064]
[1726570990807,1.07653,2322.2,2322.1,0.43062]
[1726570990808,2.67426206,2322.2,2322.1,0.43062]
[1726570991003,2.67424206,2322.3,2322.2,0.4306]
[1726570991198,0.43061,2322.2,2322.0,2.69]
[1726570991511,0.43062,2322.1,2322.0,0.43062]
[1726570993604,0.43062,2322.1,2321.8,2.69]
[1726570993605,2.67426206,2322.2,2322.1,0.43062]
[1726570993808,0.43062,2322.1,2322.0,0.43062]
[1726570994010,0.43064,2322.0,2321.9,0.43064]
[1726570995304,0.43064,2322.0,2321.8,2.69]
[1726570995305,0.43063,2322.1,2322.0,0.43063]
[1726570995511,0.43061,2322.2,2322.1,0.4306]
[1726570995704,3.2078,2322.4,2322.0,2.69]
[1726570995901,0.4116,2322.4,2322.0,3.76659]
[1726570996106,0.84217,2322.4,2322.3,0.43058]
[1726570996808,0.4116,2322.4,2322.0,2.69]
[1726570997008,1.48802,2322.4,2322.0,2.69]
[1726570997204,0.4116,2322.4,2321.8,3.80847707]
[1726570997407,0.43065,2322.0,2321.8,2.69]
[1726570997606,1.07646,2322.3,2321.6,4.88524707]
[1726570997813,0.84227,2321.9,2321.8,0.43066]
[1726570998011,0.84227,2321.9,2321.8,0.43067]
[1726570998613,0.84227,2321.9,2321.7,0.43068]
[1726570998614,0.43069,2321.8,2321.7,0.43068]
[1726570999307,0.84379,2321.8,2321.7,0.43068]
[1726570999503,0.4131,2321.8,2321.7,0.43068]
[1726570999709,0.84377,2321.8,2321.7,0.43068]
[1726571001517,1.07656,2322.1,2321.6,3.76678]
[1726571001810,0.43065,2322.0,2321.9,3.12064]
[1726571002208,0.43065,2322.0,2321.9,0.43064]
[1726571002610,0.43065,2322.0,2321.9,0.43066]
[1726571002806,0.43065,2322.0,2321.7,2.69]
[1726571002807,0.43067,2321.9,2321.8,0.43066]
[1726571003205,0.43065,2322.0,2321.9,0.43064]
[1726571003917,0.43071,2321.7,2321.6,0.4307]
[1726571004414,0.3937,2321.7,2321.6,0.4307]
[1726571004618,0.82439,2321.7,2321.6,0.4307]
[1726571004814,0.3937,2321.7,2321.6,0.4307]
[1726571005222,0.82439,2321.7,2321.6,0.4307]
[1726571005713,4.03219,2321.7,2321.6,0.4307]
[1726571005924,0.43073,2321.6,2321.5,0.43072]
[1726571006112,0.83323,2321.6,2321.5,0.43072]
[1726571011627,0.4025,2321.6,2321.5,0.43072]
[1726571011829,3.2078,2321.7,2321.6,0.43071]
[1726571012025,6.842,2322.3,2321.8,0.43066]
[1726571012026,0.43067,2321.9,2321.8,0.43066]
[1726571012221,4.46865,2322.0,2321.9,0.43066]
[1726571013527,0.43066,2321.9,2321.8,3.12066]
[1726571013728,0.43072,2321.7,2321.6,0.4307]
[1726571014434,0.43069,2321.8,2321.7,0.43068]
[1726571014636,1.07665,2321.9,2321.8,0.43066]
[1726571014637,0.43067,2321.9,2321.8,0.43066]
[1726571014932,0.43067,2321.9,2321.6,2.69]
[1726571015334,0.43067,2321.9,2321.8,0.43066]
[1726571015839,5.1146,2322.0,2321.6,2.69]
[1726571015840,0.43071,2321.7,2321.6,0.43069]
[1726571018932,0.43069,2321.8,2321.7,0.43067]
[1726571020935,7.3598,2322.3,2321.7,7.515]
[1726571021140,1.92881,2322.2,2322.1,2.69]
[1726571021336,0.43063,2322.1,2322.0,0.43062]
[1726571021637,0.85231,2322.2,2322.1,0.43062]
[1726571021838,0.4217,2322.2,2321.9,2.69]
[1726571022036,0.85232,2322.2,2322.1,0.43062]
[1726571022236,0.4217,2322.2,2322.1,0.43062]
[1726571022546,0.8523,2322.2,2322.1,0.43062]
[1726571022735,0.4217,2322.2,2322.1,0.43062]
[1726571022939,0.4217,2322.2,2322.1,4.19717]
[1726571023138,0.4217,2322.2,2322.1,3.12062]
[1726571024741,0.8523,2322.2,2322.0,3.2078]
[1726571025038,0.8523,2322.2,2321.9,2.69]
[1726571025241,0.8523,2322.2,2322.1,0.43062]
[1726571027047,0.4217,2322.2,2322.1,0.43062]
[1726571029249,0.4217,2322.2,2321.7,4.72307707]
[1726571029250,0.43063,2322.1,2322.0,0.43062]
[1726571029453,1.07656,2322.1,2321.8,0.43067]
[1726571029639,1.07656,2322.1,2321.7,3.63848]
[1726571029640,0.43067,2321.8,2321.7,3.63848]
[1726571030449,0.82037,2321.9,2321.7,3.2078]
[1726571030640,0.43067,2321.8,2321.7,3.2078]
[1726571031251,0.82037,2321.9,2321.8,0.43067]
[1726571031645,0.43067,2321.8,2321.7,3.63848]
[1726571031950,0.82037,2321.9,2321.8,0.43067]
[1726571032453,0.82037,2321.9,2321.7,3.2078]
[1726571032651,0.3897,2321.9,2321.8,0.43067]
[1726571034452,0.82036,2321.9,2321.8,0.43067]
[1726571036553,0.3897,2321.9,2321.8,0.43067]
[1726571037248,3.09596206,2322.2,2322.1,0.43062]
[1726571037448,3.48496206,2322.2,2322.1,0.43062]
[1726571037645,3.48496206,2322.2,2321.8,2.69]
[1726571037646,0.43063,2322.1,2321.8,2.69]
[1726571037959,0.43065,2322.0,2321.9,0.43064]
[1726571038353,0.43067,2321.9,2321.8,0.43066]
[1726571038856,4.73787,2321.9,2321.8,0.43066]
[1726571039056,5.14937,2321.9,2321.8,0.43066]
[1726571039860,0.84217,2321.9,2321.8,0.43066]
[1726571040048,0.4115,2321.9,2321.8,0.43066]
[1726571040952,2.67429206,2322.0,2321.9,0.43066]
[1726571041355,0.43066,2321.9,2321.8,0.43066]
[1726571041549,2.67430206,2322.0,2321.9,0.43064]
[1726571041756,0.43063,2322.1,2322.0,0.43064]
[1726571042153,4.73703,2322.1,2321.7,1.07674]
[1726571042348,5.09327268,2322.2,2321.7,1.07674]
[1726571042349,2.68675752,2322.0,2321.7,1.07674]
[1726571042551,2.25611752,2322.0,2321.9,0.43066]
[1726571042949,2.25611752,2322.1,2322.0,1.50724]
[1726571043156,0.4217,2322.2,2322.1,1.50717]
[1726571045354,0.43058,2322.3,2322.2,0.4306]
[1726571045556,2.65641752,2322.4,2322.3,0.43058]
[1726571046470,3.08697752,2322.4,2322.3,0.43058]
[1726571046965,2.65641752,2322.4,2322.3,0.43058]
[1726571047460,0.83086,2322.4,2322.3,0.43058]
[1726571048661,0.4003,2322.4,2322.3,3.12058]
[1726571049864,0.83086,2322.4,2322.3,0.43058]
[1726571051055,2.25611752,2322.7,2322.6,1.07632]
[1726571051259,0.34053145,2324.2,2322.8,2.69]
[1726571051458,2.69,2324.5,2323.6,1.11555432]
[1726571051662,3.2078,2324.2,2323.5,3.80555432]
[1726571051866,0.3874,2324.1,2323.5,1.11555432]
[1726571052062,0.3874,2324.1,2323.4,3.2078]
[1726571052063,0.91196752,2323.6,2323.4,5.8978]
[1726571052268,0.91196752,2323.5,2323.4,6.32818]
[1726571053669,0.91196752,2323.5,2323.4,3.63818]
[1726571055452,0.91196752,2323.5,2323.4,6.32818]
[1726571055661,0.91196752,2323.5,2323.4,7.40413]
[1726571056466,0.3996,2323.9,2323.8,0.4303]
[1726571057267,0.3996,2323.9,2323.7,3.2078]
[1726571057268,0.3996,2323.9,2323.7,3.63811]
[1726571057463,0.3996,2323.9,2323.8,0.4303]
[1726571057961,0.3996,2323.9,2323.7,3.63811]
[1726571058466,0.3996,2323.9,2323.4,2.69]
[1726571058667,0.82989,2323.9,2323.6,0.43033]
[1726571059060,0.3996,2323.9,2323.6,0.43033]
[1726571059258,0.82989,2323.9,2323.6,0.43033]
[1726571059671,0.43032,2323.8,2323.5,0.43035]
[1726571059969,0.3996,2323.9,2323.6,0.43034]
[1726571059970,0.82989,2323.9,2323.6,0.43034]
[1726571060363,0.82989,2323.9,2323.5,0.43035]
[1726571060364,0.43032,2323.7,2323.5,0.43035]
[1726571060565,0.43031,2323.8,2323.6,0.43034]
[1726571061265,0.43032,2323.8,2323.6,0.43034]
[1726571061669,0.3996,2323.9,2323.6,0.43034]
[1726571062065,0.4303,2323.8,2323.4,2.69]
[1726571062272,0.4303,2323.8,2323.6,0.43033]
[1726571062672,4.3032,2323.7,2323.6,0.43033]
[1726571062868,1.07581,2323.7,2323.3,3.2078]
[1726571063173,0.4145,2323.6,2323.3,3.63819]
[1726571063471,0.84485,2323.6,2323.4,0.43038]
[1726571064680,0.4145,2323.6,2323.5,0.43036]
[1726571065164,0.3996,2323.9,2323.8,0.4303]
[1726571065367,0.8299,2323.9,2323.8,0.4303]
[1726571065567,0.8299,2323.9,2323.5,2.69]
[1726571065568,0.8299,2323.9,2323.7,0.43031]
[1726571065973,0.8299,2323.9,2323.8,0.4303]
[1726571066171,0.8299,2323.9,2323.7,0.43031]
[1726571066373,0.4303,2323.8,2323.7,0.43031]
[1726571067575,0.4303,2323.8,2323.7,0.43032]
[1726571072483,0.82989,2323.9,2323.8,0.4303]
[1726571072781,0.43031,2323.8,2323.7,0.43031]
[1726571072982,0.8299,2323.9,2323.8,0.4303]
[1726571073184,0.3996,2323.9,2323.8,0.4303]
[1726571074787,0.82988,2323.9,2323.8,0.4303]
[1726571075082,0.3996,2323.9,2323.8,0.4303]
[1726571078285,0.82989,2323.9,2323.8,0.4303]
[1726571079078,0.8299,2323.9,2323.8,0.4303]
[1726571079278,0.4303,2323.8,2323.7,3.6381]
[1726571080190,0.8299,2323.9,2323.8,0.4303]
[1726571080383,0.43031,2323.8,2323.7,0.43031]
[1726571080785,0.8299,2323.9,2323.8,0.4303]
[1726571081389,5.1331,2323.9,2323.8,0.4303]
[1726571082081,0.8299,2323.9,2323.8,0.4303]
[1726571082277,0.43034,2323.7,2323.6,0.43033]
[1726571083583,0.43032,2323.8,2323.7,0.43031]
[1726571085795,0.43032,2323.8,2323.5,3.7659]
[1726571085796,0.8299,2323.9,2323.8,0.4303]
[1726571085984,0.3996,2323.9,2323.8,0.4303]
[1726571086178,0.82988,2323.9,2323.8,0.4303]
[1726571087983,0.3996,2323.9,2323.8,0.4303]
[1726571088785,0.82988,2323.9,2323.8,0.4303]
[1726571093586,0.3996,2323.9,2323.8,0.4303]
[1726571093990,2.79507265,2324.1,2324.0,0.43027]
[1726571094191,0.43024,2324.2,2324.1,0.43025]
[1726571094392,1.1933,2324.3,2324.2,0.43023]
[1726571094589,4.43724831,2324.3,2324.2,0.43023]
[1726571094789,4.00703831,2324.3,2324.2,0.43023]
[1726571095290,0.4047,2324.3,2324.2,7.42263]
[1726571095492,0.8109,2324.6,2324.5,0.43017]
[1726571095799,0.8109,2324.6,2324.4,0.43017]
[1726571095800,0.43018,2324.5,2324.4,0.43017]
[1726571096198,0.8109,2324.6,2324.4,2.69]
[1726571096390,0.3876,2324.6,2324.5,4.73257]
[1726571096585,0.3876,2324.6,2324.5,5.80801]
[1726571096792,0.3903,2324.7,2324.6,0.43016]
[1726571097088,0.3876,2324.8,2324.7,0.43014]
[1726571097287,3.39472151,2325.1,2324.9,0.43009]
[1726571097494,3.39472151,2325.1,2324.6,3.2078]
[1726571097495,2.81607479,2325.0,2324.6,3.2078]
[1726571097798,0.43016,2324.6,2324.4,0.43019]
[1726571097991,0.43016,2324.6,2324.3,5.8978]
[1726571097992,3.24630379,2324.7,2324.5,0.43017]
[1726571098196,0.3872,2324.6,2324.5,0.43017]
[1726571098789,0.43019,2324.4,2324.3,3.2078]
[1726571098995,0.43021,2324.3,2324.2,0.43023]
[1726571099197,0.84131,2324.3,2324.1,0.43024]
[1726571099393,0.84131,2324.3,2324.2,0.43023]
[1726571099595,0.43025,2324.1,2324.0,0.43026]
[1726571099794,0.43027,2324.0,2323.9,3.2078]
[1726571099993,0.43027,2324.0,2323.8,0.4303]
[1726571100187,0.43027,2324.0,2323.6,3.2078]
[1726571100388,1.07563,2324.1,2323.6,3.2078]
[1726571100593,0.43029,2323.9,2323.8,0.4303]
[1726571100807,0.43029,2323.9,2323.7,2.69]
[1726571100995,0.3884,2323.8,2323.7,2.69]
[1726571101191,0.8187,2323.8,2323.6,3.2078]
[1726571101402,0.3884,2323.8,2323.7,0.43032]
[1726571101899,0.3884,2323.8,2323.7,3.12032]
[1726571102699,0.8187,2323.8,2323.7,3.12032]
[1726571103204,0.3884,2323.8,2323.7,3.12032]
[1726571103505,3.89179379,2324.1,2324.0,0.43025]
[1726571103506,0.43026,2324.1,2324.0,0.43025]
[1726571103701,1.46399,2324.2,2323.8,2.69]
[1726571103902,0.43028,2323.9,2323.8,3.12029]
[1726571104102,0.43028,2323.9,2323.8,0.43029]
[1726571104410,0.4303,2323.8,2323.7,3.12031]
[1726571104613,0.8423,2323.8,2323.7,3.12031]
[1726571104802,0.8423,2323.8,2323.7,0.43031]
[1726571105100,0.412,2323.8,2323.5,2.69]
[1726571105404,0.81662,2323.7,2323.6,0.43033]
[1726571105803,0.3863,2323.7,2323.6,0.43033]
[1726571106001,0.81662,2323.7,2323.6,0.43033]
[1726571106195,0.3863,2323.7,2323.6,0.43033]
[1726571106402,0.81662,2323.7,2323.6,0.43033]
[1726571106601,0.3863,2323.7,2323.6,0.43033]
[1726571107004,0.43037,2323.5,2323.4,0.43038]
[1726571107203,1.07586,2323.6,2323.3,1.11555432]
[1726571107204,0.43038,2323.4,2323.3,0.43039]
[1726571107403,0.422,2323.4,2323.3,0.43039]
[1726571108703,0.85238,2323.4,2323.3,0.43039]
[1726571109205,0.422,2323.4,2323.2,0.4304]
[1726571109406,0.422,2323.4,2323.3,0.4304]
[1726571109604,0.422,2323.4,2323.2,0.4304]
[1726571109605,0.4304,2323.3,2323.2,0.4304]
[1726571110421,0.4304,2323.3,2323.2,0.43041]
[1726571111112,0.85239,2323.4,2323.3,0.4304]
[1726571111302,0.4304,2323.3,2323.2,0.4304]
[1726571111502,1.49796,2323.4,2323.0,2.69]
[1726571111699,0.43042,2323.2,2323.1,0.43042]
[1726571111905,1.49796,2323.4,2323.2,0.43041]
[1726571111906,0.43041,2323.3,2323.2,0.43041]
[1726571112107,0.43042,2323.2,2323.1,0.43042]
[1726571112306,0.3941,2323.2,2322.8,3.80555432]
[1726571112510,0.43048,2322.9,2322.7,2.69]
[1726571112704,1.07609,2323.1,2322.9,0.43047]
[1726571112905,0.43045,2323.0,2322.9,0.43047]
[1726571113101,0.43045,2323.0,2322.7,2.69]
[1726571113322,0.3941,2323.2,2323.1,0.43043]
[1726571113809,0.82451,2323.2,2323.1,0.43043]
[1726571115410,0.3941,2323.2,2323.1,0.43043]
[1726571115610,0.82451,2323.2,2323.1,0.43043]
[1726571117110,0.82451,2323.2,2322.9,2.69]
[1726571117111,0.43043,2323.1,2322.9,2.69]
[1726571117315,0.43045,2323.1,2323.0,0.43044]
[1726571117511,0.3941,2323.2,2323.1,0.43043]
[1726571118016,0.82451,2323.2,2323.1,0.43043]
[1726571119213,1.22321,2323.2,2323.1,0.43043]
[1726571120121,0.43043,2323.1,2323.0,3.12044]
[1726571123024,0.43045,2323.0,2322.9,3.12046]
[1726571123211,0.7928,2323.2,2323.0,0.43044]
[1726571123212,0.43044,2323.1,2323.0,0.43044]
[1726571123822,0.43045,2323.0,2322.9,3.12046]
[1726571124619,0.43045,2323.0,2322.9,2.62046]
[1726571125209,1.50659,2323.0,2322.9,2.19]
[1726571125813,0.43045,2323.0,2322.9,2.62047]
[1726571126009,1.50659,2323.0,2322.9,2.19]
[1726571126525,1.50659,2323.0,2322.9,2.62047]
[1726571126817,1.50659,2323.0,2322.8,0.43047]
[1726571127018,0.43047,2322.9,2322.8,0.43049]
[1726571127313,1.07614,2323.0,2322.7,2.69]
[1726571127314,0.43049,2322.8,2322.7,3.12049]
[1726571127512,0.4221,2322.8,2322.7,3.12049]
[1726571128717,0.4221,2322.8,2322.7,4.19676]
[1726571128915,0.43047,2322.9,2322.8,0.43049]
[1726571130722,0.3987,2323.0,2322.9,0.43047]
[1726571130920,0.3987,2323.0,2322.9,3.12047]
[1726571132914,0.82915,2323.0,2322.9,3.12047]
[1726571133125,0.3987,2323.0,2322.9,3.12047]
[1726571133423,0.3987,2323.0,2322.9,4.19665]
[1726571133624,0.3987,2323.0,2322.9,3.12047]
[1726571138730,0.3987,2323.0,2322.9,0.43047]
[1726571140421,0.3987,2323.0,2322.9,1.50665]
[1726571140618,4.152,2323.6,2323.5,0.43036]
[1726571140922,0.4217,2323.7,2323.5,2.62533]
[1726571141126,0.4217,2323.7,2323.6,0.43033]
[1726571142324,0.4217,2323.7,2323.5,2.62533]
[1726571142521,0.4217,2323.7,2323.6,0.43033]
[1726571146624,0.4217,2323.7,2323.0,7.01335432]
[1726571146625,10.7249,2323.7,2323.0,7.01335432]
[1726571146818,0.43038,2323.4,2323.3,0.43039]
[1726571147023,0.43038,2323.4,2323.3,0.4304]
[1726571147424,0.7963,2323.5,2323.2,0.4304]
[1726571147425,0.4304,2323.3,2323.2,0.4304]